[Event "2026 European Womens Championship"]
[Site "Batumi, GE"]
[Date "2026.05.27"]
[Round "3"]
[White "Kalandadze, Mariam"]
[Black "Ediberidze, Alexandra"]
[Result "1-0"]
[Board "79"]
[TimeControl "5400+30"]
[WhiteFideId "13621122"]
[BlackFideId "13636685"]
[WhiteElo "1892"]
[BlackElo "1638"]
[WhiteClock "0:30:56"]
[BlackClock "0:09:56"]
[Variant "Standard"]

1. Nf3 {[%clk 1:30:58]}  d5 {[%clk 1:30:31]} 2. g3 {[%clk 1:31:22]}  Nf6 {[%clk 1:30:55]} 3. Bg2 {[%clk 1:31:42]}  e6 {[%clk 1:31:14]}
4. c4 {[%clk 1:31:40]}  Be7 {[%clk 1:29:01]} 5. O-O {[%clk 1:31:54]}  O-O {[%clk 1:29:02]} 6. d3 {[%clk 1:29:46]}  Nbd7 {[%clk 1:17:50]}
7. a3 {[%clk 1:27:39]}  Nb6 {[%clk 1:17:08]} 8. Qc2 {[%clk 1:26:23]}  c5 {[%clk 1:01:26]} 9. Bd2 {[%clk 1:23:51]}  Bd7 {[%clk 0:58:45]}
10. b4 {[%clk 1:21:23]}  Rc8 {[%clk 0:55:50]} 11. b5 {[%clk 1:19:33]}  Qc7 {[%clk 0:44:48]} 12. a4 {[%clk 1:13:33]}  e5 {[%clk 0:41:50]}
13. Ba5 {[%clk 1:05:36]}  Bf5 {[%clk 0:38:53]} 14. cxd5 {[%clk 0:59:56]}  e4 {[%clk 0:36:30]} 15. Nh4 {[%clk 0:59:07]}  exd3 {[%clk 0:36:31]}
16. exd3 {[%clk 0:59:33]}  Bd7 {[%clk 0:30:50]} 17. Nd2 {[%clk 0:57:34]}  Qb8 {[%clk 0:29:34]} 18. Bxb6 {[%clk 0:56:34]}  axb6 {[%clk 0:29:58]}
19. Nc4 {[%clk 0:56:51]}  Qc7 {[%clk 0:29:25]} 20. Rfe1 {[%clk 0:54:53]}  Bd6 {[%clk 0:28:20]} 21. Re2 {[%clk 0:47:59]}  Rfe8 {[%clk 0:26:52]}
22. Rae1 {[%clk 0:46:20]}  h6 {[%clk 0:22:28]} 23. Rxe8+ {[%clk 0:45:44]}  Rxe8 {[%clk 0:22:57]} 24. Rxe8+ {[%clk 0:45:58]}  Nxe8 {[%clk 0:23:24]}
25. Qe2 {[%clk 0:44:43]}  Nf6 {[%clk 0:22:58]} 26. Be4 {[%clk 0:43:12]}  Bg4 {[%clk 0:18:33]} 27. Qe3 {[%clk 0:38:30]}  Qd8 {[%clk 0:16:31]}
28. Bf5 {[%clk 0:31:42]}  Nxd5 {[%clk 0:15:28]} 29. Qe4 {[%clk 0:31:11]}  Nf6 {[%clk 0:15:04]} 30. Qxb7 {[%clk 0:31:11]}  Bxf5 {[%clk 0:15:26]}
31. Nxf5 {[%clk 0:31:36]}  Bc7 {[%clk 0:15:42]} 32. Qf3 {[%clk 0:30:19]}  Nd5 {[%clk 0:10:49]} 33. Qxd5 {[%clk 0:30:32]}  Qe8 {[%clk 0:11:02]}
34. Qc6 {[%clk 0:29:40]}  Qe1+ {[%clk 0:11:25]} 35. Kg2 {[%clk 0:30:09]}  Bd8 {[%clk 0:10:06]} 36. Qe4 {[%clk 0:30:30]}  Qxe4+ {[%clk 0:09:56]}
37. dxe4 {[%clk 0:30:56]} 1-0

[Event "2026 European Womens Championship"]
[Site "Batumi, GE"]
[Date "2026.05.27"]
[Round "3"]
[White "Xing, Lida"]
[Black "Damaso Tacoronte, Carolina"]
[Result "1/2-1/2"]
[Board "80"]
[TimeControl "5400+30"]
[WhiteFideId "13326171"]
[BlackFideId "2292858"]
[WhiteElo "1598"]
[BlackElo "1890"]
[WhiteClock "0:04:11"]
[BlackClock "0:00:15"]
[Variant "Standard"]

1. e4 {[%clk 1:30:57]}  c6 {[%clk 1:26:14]} 2. d4 {[%clk 1:31:24]}  d5 {[%clk 1:26:30]} 3. e5 {[%clk 1:31:32]}  Bf5 {[%clk 1:26:25]}
4. h4 {[%clk 1:31:55]}  h5 {[%clk 1:26:25]} 5. Nc3 {[%clk 1:31:24]}  e6 {[%clk 1:25:43]} 6. Be2 {[%clk 1:29:52]}  c5 {[%clk 1:18:59]}
7. Nf3 {[%clk 1:28:06]}  Nc6 {[%clk 1:17:49]} 8. Be3 {[%clk 1:26:26]}  cxd4 {[%clk 1:15:12]} 9. Nxd4 {[%clk 1:26:39]}  Bg6 {[%clk 1:07:09]}
10. Bb5 {[%clk 1:16:38]}  Qc7 {[%clk 1:05:11]} 11. Qe2 {[%clk 1:14:24]}  Nge7 {[%clk 0:58:10]} 12. Bg5 {[%clk 0:58:36]}  a6 {[%clk 0:48:51]}
13. Bxe7 {[%clk 0:56:44]}  Bxe7 {[%clk 0:49:09]} 14. Nxc6 {[%clk 0:55:25]}  bxc6 {[%clk 0:48:44]} 15. Bd3 {[%clk 0:51:45]}  Bxd3 {[%clk 0:47:00]}
16. cxd3 {[%clk 0:52:10]}  d4 {[%clk 0:45:56]} 17. Nd1 {[%clk 0:50:48]}  Qa5+ {[%clk 0:45:01]} 18. Kf1 {[%clk 0:51:06]}  Qd5 {[%clk 0:42:53]}
19. b3 {[%clk 0:46:27]}  Ba3 {[%clk 0:38:09]} 20. f3 {[%clk 0:41:27]}  Rb8 {[%clk 0:36:35]} 21. Nf2 {[%clk 0:40:19]}  Rb5 {[%clk 0:34:24]}
22. Qc2 {[%clk 0:40:39]}  Rc5 {[%clk 0:34:10]} 23. Qd1 {[%clk 0:35:29]}  Qxe5 {[%clk 0:32:41]} 24. Rb1 {[%clk 0:34:01]}  Rb5 {[%clk 0:19:18]}
25. Ne4 {[%clk 0:28:41]}  O-O {[%clk 0:15:59]} 26. Nd2 {[%clk 0:26:04]}  Qf4 {[%clk 0:13:23]} 27. Nc4 {[%clk 0:26:17]}  Be7 {[%clk 0:12:58]}
28. Qe1 {[%clk 0:25:07]}  Rfb8 {[%clk 0:10:34]} 29. Qf2 {[%clk 0:23:08]}  a5 {[%clk 0:09:59]} 30. g3 {[%clk 0:21:55]}  Qf6 {[%clk 0:10:12]}
31. Kg2 {[%clk 0:22:12]}  a4 {[%clk 0:09:15]} 32. Qc2 {[%clk 0:16:54]}  axb3 {[%clk 0:09:36]} 33. Rxb3 {[%clk 0:17:05]}  Rxb3 {[%clk 0:08:54]}
34. axb3 {[%clk 0:17:31]}  Qf5 {[%clk 0:08:42]} 35. Re1 {[%clk 0:15:25]}  Bf6 {[%clk 0:06:50]} 36. Rc1 {[%clk 0:11:08]}  Qd5 {[%clk 0:06:32]}
37. Nd2 {[%clk 0:09:50]}  Qb5 {[%clk 0:05:55]} 38. Kh3 {[%clk 0:06:44]}  Qf5+ {[%clk 0:05:04]} 39. Kg2 {[%clk 0:07:07]}  Qb5 {[%clk 0:04:50]}
40. Kh3 {[%clk 0:07:20]}  Qe5 {[%clk 0:02:44]} 41. Qxc6 {[%clk 0:06:42]}  Qf5+ {[%clk 0:02:57]} 42. Kg2 {[%clk 0:06:48]}  Qxd3 {[%clk 0:02:59]}
43. Qc2 {[%clk 0:06:06]}  Qxc2 {[%clk 0:02:48]} 44. Rxc2 {[%clk 0:06:32]}  d3 {[%clk 0:02:53]} 45. Rc7 {[%clk 0:05:33]}  Rd8 {[%clk 0:02:30]}
46. f4 {[%clk 0:04:10]}  Bd4 {[%clk 0:02:20]} 47. Kf3 {[%clk 0:02:33]}  e5 {[%clk 0:02:33]} 48. fxe5 {[%clk 0:01:51]}  Bxe5 {[%clk 0:02:52]}
49. Rc5 {[%clk 0:02:14]}  Bd4 {[%clk 0:02:19]} 50. Rc4 {[%clk 0:02:29]}  f5 {[%clk 0:01:46]} 51. b4 {[%clk 0:02:52]}  Ba7 {[%clk 0:01:37]}
52. Rc6 {[%clk 0:02:56]}  Bd4 {[%clk 0:01:26]} 53. Rc4 {[%clk 0:02:24]}  g6 {[%clk 0:01:29]} 54. b5 {[%clk 0:02:45]}  Bb6 {[%clk 0:01:31]}
55. Rc1 {[%clk 0:02:14]}  Ba5 {[%clk 0:01:47]} 56. Rd1 {[%clk 0:02:28]}  Rb8 {[%clk 0:00:43]} 57. Nc4 {[%clk 0:02:39]}  Rxb5 {[%clk 0:00:48]}
58. Nxa5 {[%clk 0:03:05]}  Rxa5 {[%clk 0:01:12]} 59. Rxd3 {[%clk 0:03:31]}  Ra4 {[%clk 0:01:10]} 60. Rd7 {[%clk 0:03:49]}  Re4 {[%clk 0:01:18]}
61. Rc7 {[%clk 0:03:59]}  Kf8 {[%clk 0:01:30]} 62. Rb7 {[%clk 0:04:13]}  Re7 {[%clk 0:01:35]} 63. Rb6 {[%clk 0:04:18]}  Kf7 {[%clk 0:01:40]}
64. Kf4 {[%clk 0:04:01]}  Re4+ {[%clk 0:01:47]} 65. Kf3 {[%clk 0:04:22]}  Re6 {[%clk 0:02:07]} 66. Rb5 {[%clk 0:04:43]}  Kf6 {[%clk 0:02:27]}
67. Kf4 {[%clk 0:05:03]}  Re4+ {[%clk 0:02:24]} 68. Kf3 {[%clk 0:05:28]}  Re5 {[%clk 0:02:35]} 69. Rb6+ {[%clk 0:05:52]}  Re6 {[%clk 0:02:47]}
70. Rb8 {[%clk 0:05:21]}  Ra6 {[%clk 0:02:00]} 71. Kf4 {[%clk 0:05:23]}  Ra4+ {[%clk 0:02:13]} 72. Kf3 {[%clk 0:05:37]}  Re4 {[%clk 0:02:00]}
73. Rf8+ {[%clk 0:05:33]}  Kg7 {[%clk 0:02:10]} 74. Rb8 {[%clk 0:05:56]}  Rg4 {[%clk 0:02:08]} 75. Rb7+ {[%clk 0:05:58]}  Kh6 {[%clk 0:01:53]}
76. Rf7 {[%clk 0:05:12]}  Rb4 {[%clk 0:00:56]} 77. Rc7 {[%clk 0:05:33]}  Re4 {[%clk 0:00:50]} 78. Rb7 {[%clk 0:05:53]}  Re6 {[%clk 0:00:47]}
79. Kf4 {[%clk 0:06:10]}  Re1 {[%clk 0:00:54]} 80. Rc7 {[%clk 0:04:56]}  Rf1+ {[%clk 0:00:50]} 81. Ke3 {[%clk 0:05:13]}  Rg1 {[%clk 0:00:42]}
82. Kf4 {[%clk 0:05:34]}  Re1 {[%clk 0:00:44]} 83. Rb7 {[%clk 0:05:51]}  Re4+ {[%clk 0:00:58]} 84. Kf3 {[%clk 0:06:14]}  Rg4 {[%clk 0:00:47]}
85. Rf7 {[%clk 0:06:36]}  Rc4 {[%clk 0:00:53]} 86. Rb7 {[%clk 0:06:44]}  Ra4 {[%clk 0:00:42]} 87. Rc7 {[%clk 0:07:06]}  Rb4 {[%clk 0:00:42]}
88. Rf7 {[%clk 0:07:02]}  Rb8 {[%clk 0:00:54]} 89. Kf4 {[%clk 0:07:21]}  Rb3 {[%clk 0:00:51]} 90. Rc7 {[%clk 0:05:43]}  Rb1 {[%clk 0:00:49]}
91. Ke5 {[%clk 0:04:23]}  Rb3 {[%clk 0:00:41]} 92. Kf6 {[%clk 0:03:32]}  Rb6+ {[%clk 0:00:53]} 93. Ke5 {[%clk 0:03:54]}  Ra6 {[%clk 0:00:15]}
94. Rb7 {[%clk 0:04:11]} 1/2-1/2

[Event "2026 European Womens Championship"]
[Site "Batumi, GE"]
[Date "2026.05.27"]
[Round "3"]
[White "Recica, Jona"]
[Black "Asatiani, Natali"]
[Result "0-1"]
[Board "81"]
[TimeControl "5400+30"]
[WhiteFideId "22105239"]
[BlackFideId "13636715"]
[WhiteElo "1842"]
[BlackElo "1603"]
[WhiteClock "0:26:09"]
[BlackClock "0:07:16"]
[Variant "Standard"]

1. e4 {[%clk 1:30:57]}  c5 {[%clk 1:30:56]} 2. Nf3 {[%clk 1:30:47]}  Nc6 {[%clk 1:31:21]} 3. d4 {[%clk 1:31:04]}  cxd4 {[%clk 1:31:36]}
4. Nxd4 {[%clk 1:31:15]}  g6 {[%clk 1:31:57]} 5. Nc3 {[%clk 1:31:27]}  Bg7 {[%clk 1:32:02]} 6. Be3 {[%clk 1:31:49]}  Nf6 {[%clk 1:32:26]}
7. f3 {[%clk 1:30:56]}  O-O {[%clk 1:32:43]} 8. Qd2 {[%clk 1:31:20]}  d6 {[%clk 1:30:54]} 9. O-O-O {[%clk 1:31:29]}  Nxd4 {[%clk 1:25:43]}
10. Bxd4 {[%clk 1:30:16]}  Be6 {[%clk 1:25:34]} 11. g4 {[%clk 1:26:54]}  Qa5 {[%clk 1:23:24]} 12. a3 {[%clk 1:25:55]}  a6 {[%clk 1:03:20]}
13. h4 {[%clk 1:20:37]}  b5 {[%clk 0:51:40]} 14. Nd5 {[%clk 1:12:31]}  Qxd2+ {[%clk 0:49:33]} 15. Rxd2 {[%clk 1:11:51]}  Nxd5 {[%clk 0:47:20]}
16. exd5 {[%clk 1:11:13]}  Bc8 {[%clk 0:39:36]} 17. Be3 {[%clk 1:08:22]}  f5 {[%clk 0:36:37]} 18. Be2 {[%clk 0:59:33]}  Bb7 {[%clk 0:31:07]}
19. Rg1 {[%clk 0:57:41]}  Rac8 {[%clk 0:26:39]} 20. Bg5 {[%clk 0:55:16]}  Rc7 {[%clk 0:24:05]} 21. Be3 {[%clk 0:44:51]}  Bc8 {[%clk 0:16:36]}
22. f4 {[%clk 0:40:35]}  fxg4 {[%clk 0:15:48]} 23. Bxg4 {[%clk 0:40:40]}  Bxg4 {[%clk 0:12:11]} 24. Rxg4 {[%clk 0:41:01]}  Rf5 {[%clk 0:08:25]}
25. Rg1 {[%clk 0:34:56]}  Rc4 {[%clk 0:07:35]} 26. Rd3 {[%clk 0:33:23]}  Bh6 {[%clk 0:06:12]} 27. b3 {[%clk 0:31:56]}  Re4 {[%clk 0:05:47]}
28. Rc3 {[%clk 0:30:46]}  Rxe3 {[%clk 0:04:54]} 29. Rxe3 {[%clk 0:30:00]}  Bxf4 {[%clk 0:05:20]} 30. Kd2 {[%clk 0:29:37]}  Rxd5+ {[%clk 0:05:32]}
31. Ke2 {[%clk 0:29:58]}  Bxe3 {[%clk 0:05:59]} 32. Kxe3 {[%clk 0:30:23]}  Kf7 {[%clk 0:06:17]} 33. Rg2 {[%clk 0:29:39]}  Kf6 {[%clk 0:06:23]}
34. Ke4 {[%clk 0:29:43]}  Rf5 {[%clk 0:05:48]} 35. Rh2 {[%clk 0:28:57]}  e6 {[%clk 0:06:04]} 36. Rd2 {[%clk 0:27:16]}  Ke7 {[%clk 0:06:04]}
37. Rh2 {[%clk 0:26:21]}  d5+ {[%clk 0:06:26]} 38. Kd4 {[%clk 0:26:22]}  Kd6 {[%clk 0:06:50]} 39. b4 {[%clk 0:26:21]}  Rf3 {[%clk 0:06:59]}
40. Re2 {[%clk 0:25:59]}  e5+ {[%clk 0:06:50]} 41. Rxe5 {[%clk 0:26:09]}  Rf4+ {[%clk 0:07:16]} 0-1

[Event "2026 European Womens Championship"]
[Site "Batumi, GE"]
[Date "2026.05.27"]
[Round "3"]
[White "Avelino, Camila Biscaya"]
[Black "Casadevall Mainau, Iraida"]
[Result "1-0"]
[Board "82"]
[TimeControl "5400+30"]
[WhiteFideId "1938975"]
[BlackFideId "54543142"]
[WhiteElo "1937"]
[BlackElo "1729"]
[WhiteTitle "WFM"]
[WhiteClock "0:02:01"]
[BlackClock "1:30:30"]
[Variant "Standard"]

1. e4 {[%clk 1:30:30]}  e5 {[%clk 0:00:00]} 2. Nf3 {[%clk 1:30:26]}  Nc6 {[%clk 0:00:00]} 3. Bb5 {[%clk 1:30:16]}  a6 {[%clk 0:00:00]}
4. Ba4 {[%clk 1:30:13]}  Nf6 {[%clk 0:00:00]} 5. O-O {[%clk 1:29:34]}  Be7 {[%clk 0:00:00]} 6. Re1 {[%clk 1:29:23]}  b5 {[%clk 0:00:00]}
7. Bb3 {[%clk 1:29:19]}  d6 {[%clk 0:00:00]} 8. c3 {[%clk 1:28:31]}  O-O {[%clk 0:00:00]} 9. h3 {[%clk 1:28:09]}  Nb8 {[%clk 0:00:00]}
10. d4 {[%clk 1:26:23]}  Nbd7 {[%clk 0:00:00]} 11. c4 {[%clk 1:24:39]}  exd4 {[%clk 0:00:00]} 12. cxb5 {[%clk 1:07:43]}  Bb7 {[%clk 0:00:00]}
13. bxa6 {[%clk 1:01:39]}  Bxe4 {[%clk 0:00:00]} 14. Nxd4 {[%clk 1:00:03]}  Rxa6 {[%clk 0:00:00]} 15. Nc3 {[%clk 0:42:11]}  Nc5 {[%clk 0:00:00]}
16. Qe2 {[%clk 0:37:59]}  Re8 {[%clk 0:00:00]} 17. Bc4 {[%clk 0:15:59]}  Ra8 {[%clk 0:00:00]} 18. Nxe4 {[%clk 0:11:57]}  Nfxe4 {[%clk 0:00:00]}
19. Bb5 {[%clk 0:06:22]}  Bf6 {[%clk 0:00:00]} 20. Bxe8 {[%clk 0:04:48]}  Bxd4 {[%clk 0:00:00]} 21. Be3 {[%clk 0:02:19]}  Bxe3 {[%clk 0:00:00]}
22. Qxe3 {[%clk 0:02:15]}  Qxe8 {[%clk 0:00:00]} 23. b4 {[%clk 0:02:01]}  Qc6 {[%clk 0:00:00]} 24. f3 {[%clk 0:02:01]}  f5 {[%clk 0:00:00]}
25. bxc5 {[%clk 0:00:00]}  Nxc5 {[%clk 0:00:00]} 26. Qg5 {[%clk 0:00:00]}  Qd5 {[%clk 0:00:00]} 27. Rad1 {[%clk 0:00:00]}  Qxa2 {[%clk 0:00:00]}
28. Re7 {[%clk 0:00:00]}  Qb2 {[%clk 0:00:00]} 29. Qxf5 {[%clk 0:00:00]}  Rf8 {[%clk 0:00:00]} 30. Qd5+ {[%clk 0:00:00]}  Kh8 {[%clk 0:00:00]}
31. Rxc7 {[%clk 0:00:00]}  Nd3 {[%clk 0:00:00]} 32. Qxd6 {[%clk 0:00:00]}  Qf2+ {[%clk 0:00:00]} 33. Kh1 {[%clk 0:00:00]}  Rxf3 {[%clk 0:00:00]}
34. Rc8+ {[%clk 0:00:00]}  Rf8 {[%clk 0:00:00]} 35. Rxf8+ {[%clk 0:00:00]} 1-0

[Event "2026 European Womens Championship"]
[Site "Batumi, GE"]
[Date "2026.05.28"]
[Round "4"]
[White "Hnatyshyn, Anastasiia"]
[Black "Narva, Mai"]
[Result "1-0"]
[Board "1"]
[TimeControl "5400+30"]
[WhiteFideId "14198339"]
[BlackFideId "4500512"]
[WhiteElo "2207"]
[BlackElo "2426"]
[WhiteTitle "WFM"]
[BlackTitle "IM"]
[WhiteClock "0:26:39"]
[BlackClock "0:29:37"]
[Variant "Standard"]

1. e4 {[%clk 1:30:57]}  c6 {[%clk 1:30:39]} 2. d4 {[%clk 1:31:22]}  d5 {[%clk 1:30:55]} 3. Nc3 {[%clk 1:31:48]}  dxe4 {[%clk 1:31:05]}
4. Nxe4 {[%clk 1:32:14]}  Nf6 {[%clk 1:30:51]} 5. Nxf6+ {[%clk 1:32:38]}  exf6 {[%clk 1:31:14]} 6. Be3 {[%clk 1:32:57]}  Bd6 {[%clk 1:29:18]}
7. Bd3 {[%clk 1:33:09]}  O-O {[%clk 1:27:47]} 8. Ne2 {[%clk 1:33:17]}  Re8 {[%clk 1:15:25]} 9. O-O {[%clk 1:33:17]}  Qc7 {[%clk 1:11:29]}
10. h3 {[%clk 1:29:59]}  Nd7 {[%clk 1:07:03]} 11. c4 {[%clk 1:26:52]}  c5 {[%clk 0:58:13]} 12. Qc2 {[%clk 1:18:47]}  Nf8 {[%clk 0:54:09]}
13. Nc3 {[%clk 1:11:47]}  cxd4 {[%clk 0:50:32]} 14. Bxd4 {[%clk 1:08:26]}  Qb8 {[%clk 0:48:32]} 15. Rad1 {[%clk 1:01:42]}  Bd7 {[%clk 0:38:12]}
16. Nd5 {[%clk 0:53:18]}  Bc6 {[%clk 0:36:00]} 17. Be4 {[%clk 0:52:30]}  h6 {[%clk 0:30:45]} 18. Rfe1 {[%clk 0:48:37]}  Be5 {[%clk 0:29:15]}
19. Bc5 {[%clk 0:46:10]}  Kh8 {[%clk 0:28:03]} 20. b4 {[%clk 0:42:07]}  Ne6 {[%clk 0:20:08]} 21. Be3 {[%clk 0:41:20]}  Rc8 {[%clk 0:03:28]}
22. Qe2 {[%clk 0:22:22]}  Bxd5 {[%clk 0:02:59]} 23. Bxd5 {[%clk 0:19:41]}  Qc7 {[%clk 0:02:21]} 24. Qf3 {[%clk 0:18:38]}  Rd8 {[%clk 0:02:23]}
25. Rd3 {[%clk 0:14:46]}  Rab8 {[%clk 0:01:34]} 26. Red1 {[%clk 0:14:43]}  b6 {[%clk 0:00:55]} 27. g3 {[%clk 0:13:13]}  Qe7 {[%clk 0:01:07]}
28. a3 {[%clk 0:11:14]}  Nc7 {[%clk 0:00:56]} 29. Be4 {[%clk 0:10:25]}  Ne6 {[%clk 0:01:13]} 30. Qh5 {[%clk 0:09:09]}  Kg8 {[%clk 0:01:13]}
31. Bd5 {[%clk 0:08:19]}  Rbc8 {[%clk 0:01:00]} 32. h4 {[%clk 0:07:19]}  Kh7 {[%clk 0:00:39]} 33. Be4+ {[%clk 0:05:14]}  Kg8 {[%clk 0:01:03]}
34. Bd5 {[%clk 0:04:33]}  Kh7 {[%clk 0:01:18]} 35. Be4+ {[%clk 0:04:58]}  Kg8 {[%clk 0:01:44]} 36. Qg4 {[%clk 0:05:17]}  Rxd3 {[%clk 0:00:47]}
37. Rxd3 {[%clk 0:05:36]}  Kf8 {[%clk 0:00:51]} 38. c5 {[%clk 0:04:51]}  Qc7 {[%clk 0:00:55]} 39. f4 {[%clk 0:02:36]}  bxc5 {[%clk 0:00:31]}
40. fxe5 {[%clk 0:02:14]}  c4 {[%clk 0:00:38]} 41. Rd5 {[%clk 0:00:52]}  fxe5 {[%clk 0:30:08]} 42. Bc5+ {[%clk 0:27:22]}  Kg8 {[%clk 0:28:16]}
43. Qf5 {[%clk 0:26:13]}  g6 {[%clk 0:28:38]} 44. Qxe5 {[%clk 0:26:19]}  Qxe5 {[%clk 0:28:58]} 45. Rxe5 {[%clk 0:26:44]}  c3 {[%clk 0:29:20]}
46. Bc2 {[%clk 0:26:22]}  Rd8 {[%clk 0:29:37]} 47. Re3 {[%clk 0:26:39]} 1-0

[Event "2026 European Womens Championship"]
[Site "Batumi, GE"]
[Date "2026.05.28"]
[Round "4"]
[White "Aydin, Gulenay"]
[Black "Kiolbasa, Oliwia"]
[Result "1/2-1/2"]
[Board "2"]
[TimeControl "5400+30"]
[WhiteFideId "34557431"]
[BlackFideId "1154613"]
[WhiteElo "2204"]
[BlackElo "2397"]
[WhiteTitle "WIM"]
[BlackTitle "IM"]
[WhiteClock "0:04:43"]
[BlackClock "0:03:38"]
[Variant "Standard"]

1. e4 {[%clk 1:29:03]}  e5 {[%clk 1:29:11]} 2. Nf3 {[%clk 1:29:24]}  Nc6 {[%clk 1:29:30]} 3. d4 {[%clk 1:29:34]}  exd4 {[%clk 1:29:42]}
4. Nxd4 {[%clk 1:30:01]}  Bc5 {[%clk 1:29:45]} 5. Nxc6 {[%clk 1:30:00]}  Qf6 {[%clk 1:29:31]} 6. Qf3 {[%clk 1:30:02]}  bxc6 {[%clk 1:26:48]}
7. Nd2 {[%clk 1:29:25]}  d6 {[%clk 1:23:42]} 8. Nb3 {[%clk 1:28:45]}  Bb6 {[%clk 1:23:28]} 9. a4 {[%clk 1:28:54]}  a5 {[%clk 1:21:22]}
10. Bd2 {[%clk 1:26:48]}  Be6 {[%clk 1:09:24]} 11. Bc3 {[%clk 1:25:23]}  Qxf3 {[%clk 1:07:04]} 12. gxf3 {[%clk 1:25:50]}  Nf6 {[%clk 1:04:39]}
13. Nd4 {[%clk 1:24:02]}  Bxd4 {[%clk 1:01:19]} 14. Bxd4 {[%clk 1:24:26]}  Ke7 {[%clk 1:00:32]} 15. Rg1 {[%clk 1:21:39]}  Rhg8 {[%clk 0:58:23]}
16. O-O-O {[%clk 1:11:56]}  g6 {[%clk 0:57:40]} 17. h4 {[%clk 1:02:56]}  Nh5 {[%clk 0:53:17]} 18. Be3 {[%clk 0:43:22]}  f5 {[%clk 0:52:04]}
19. Be2 {[%clk 0:37:57]}  Rgf8 {[%clk 0:47:45]} 20. e5 {[%clk 0:32:14]}  f4 {[%clk 0:45:11]} 21. exd6+ {[%clk 0:31:40]}  cxd6 {[%clk 0:45:34]}
22. Bd2 {[%clk 0:31:58]}  c5 {[%clk 0:40:49]} 23. Rge1 {[%clk 0:29:17]}  d5 {[%clk 0:35:14]} 24. Bb5 {[%clk 0:27:12]}  Kd6 {[%clk 0:28:11]}
25. Re2 {[%clk 0:25:50]}  Ng7 {[%clk 0:22:19]} 26. c4 {[%clk 0:16:34]}  d4 {[%clk 0:17:10]} 27. Rde1 {[%clk 0:10:02]}  Rf6 {[%clk 0:12:40]}
28. Re4 {[%clk 0:10:21]}  Nh5 {[%clk 0:12:49]} 29. Re5 {[%clk 0:10:24]}  Ra7 {[%clk 0:09:19]} 30. b3 {[%clk 0:10:31]}  h6 {[%clk 0:06:30]}
31. Kd1 {[%clk 0:10:29]}  Ng7 {[%clk 0:05:10]} 32. Bc1 {[%clk 0:09:13]}  Rc7 {[%clk 0:04:13]} 33. Bd2 {[%clk 0:05:51]}  Ra7 {[%clk 0:04:36]}
34. Bc1 {[%clk 0:06:17]}  Rc7 {[%clk 0:04:43]} 35. Bd2 {[%clk 0:03:38]} 1/2-1/2

[Event "2026 European Womens Championship"]
[Site "Batumi, GE"]
[Date "2026.05.28"]
[Round "4"]
[White "Kazarian, Anna-Maja"]
[Black "Mirzoeva, Elmira"]
[Result "0-1"]
[Board "3"]
[TimeControl "5400+30"]
[WhiteFideId "1033689"]
[BlackFideId "4127951"]
[WhiteElo "2317"]
[BlackElo "2265"]
[WhiteTitle "FM"]
[BlackTitle "WGM"]
[WhiteClock "0:00:36"]
[BlackClock "0:01:03"]
[Variant "Standard"]

1. Nf3 {[%clk 1:30:57]}  Nf6 {[%clk 1:29:15]} 2. g3 {[%clk 1:31:19]}  d6 {[%clk 1:26:58]} 3. d4 {[%clk 1:30:29]}  Bf5 {[%clk 1:26:48]}
4. Bg2 {[%clk 1:29:50]}  c6 {[%clk 1:26:45]} 5. O-O {[%clk 1:26:54]}  h6 {[%clk 1:26:30]} 6. c4 {[%clk 1:25:25]}  Nbd7 {[%clk 1:26:29]}
7. Nc3 {[%clk 1:23:59]}  e5 {[%clk 1:26:24]} 8. Re1 {[%clk 1:20:22]}  Be7 {[%clk 1:26:05]} 9. e4 {[%clk 1:18:24]}  Bh7 {[%clk 1:26:19]}
10. h3 {[%clk 1:18:06]}  O-O {[%clk 1:26:19]} 11. g4 {[%clk 1:12:40]}  Re8 {[%clk 1:19:15]} 12. Nh2 {[%clk 0:52:09]}  Qb6 {[%clk 1:05:31]}
13. d5 {[%clk 0:26:28]}  cxd5 {[%clk 0:57:22]} 14. Nxd5 {[%clk 0:26:05]}  Nxd5 {[%clk 0:57:42]} 15. Qxd5 {[%clk 0:26:22]}  Rac8 {[%clk 0:39:25]}
16. b3 {[%clk 0:22:40]}  Nc5 {[%clk 0:30:22]} 17. Be3 {[%clk 0:21:46]}  Bg5 {[%clk 0:29:14]} 18. Rad1 {[%clk 0:17:23]}  Bxe3 {[%clk 0:28:37]}
19. fxe3 {[%clk 0:17:25]}  Red8 {[%clk 0:28:15]} 20. Nf1 {[%clk 0:17:14]}  a5 {[%clk 0:20:54]} 21. Ng3 {[%clk 0:17:13]}  a4 {[%clk 0:20:40]}
22. Rb1 {[%clk 0:17:13]}  axb3 {[%clk 0:17:54]} 23. axb3 {[%clk 0:17:41]}  Ra8 {[%clk 0:18:18]} 24. b4 {[%clk 0:16:04]}  Ne6 {[%clk 0:17:38]}
25. Qd2 {[%clk 0:14:10]}  Ra3 {[%clk 0:12:14]} 26. Ra1 {[%clk 0:13:51]}  Rb3 {[%clk 0:11:22]} 27. Ra4 {[%clk 0:07:03]}  Nf4 {[%clk 0:09:57]}
28. Bf1 {[%clk 0:04:45]}  Bg6 {[%clk 0:04:27]} 29. Kh2 {[%clk 0:03:53]}  Ne6 {[%clk 0:04:38]} 30. Nf5 {[%clk 0:02:48]}  Ng5 {[%clk 0:02:43]}
31. Bg2 {[%clk 0:02:39]}  Bxf5 {[%clk 0:02:21]} 32. gxf5 {[%clk 0:03:05]}  Qc6 {[%clk 0:01:18]} 33. Rea1 {[%clk 0:00:51]}  b6 {[%clk 0:00:41]}
34. b5 {[%clk 0:00:47]}  Qc5 {[%clk 0:01:04]} 35. Ra8 {[%clk 0:00:54]}  Rf8 {[%clk 0:00:39]} 36. Rxf8+ {[%clk 0:00:52]}  Kxf8 {[%clk 0:01:08]}
37. Ra8+ {[%clk 0:01:09]}  Ke7 {[%clk 0:01:37]} 38. Ra7+ {[%clk 0:00:37]}  Ke8 {[%clk 0:01:21]} 39. Ra8+ {[%clk 0:00:51]}  Ke7 {[%clk 0:01:49]}
40. Ra7+ {[%clk 0:01:11]}  Ke8 {[%clk 0:01:17]} 41. h4 {[%clk 0:14:59]}  Nh7 {[%clk 0:30:28]} 42. Ra8+ {[%clk 0:13:14]}  Ke7 {[%clk 0:26:15]}
43. Ra7+ {[%clk 0:10:04]}  Ke8 {[%clk 0:23:55]} 44. Qd1 {[%clk 0:01:45]}  Ra3 {[%clk 0:10:23]} 45. Rb7 {[%clk 0:01:53]}  Nf6 {[%clk 0:04:59]}
46. Rb8+ {[%clk 0:02:21]}  Kd7 {[%clk 0:03:57]} 47. Rb7+ {[%clk 0:02:47]}  Kc8 {[%clk 0:01:25]} 48. Rxf7 {[%clk 0:03:11]}  Qxe3 {[%clk 0:01:46]}
49. Rxg7 {[%clk 0:01:42]}  Qf4+ {[%clk 0:02:10]} 50. Kg1 {[%clk 0:01:47]}  Rc3 {[%clk 0:02:00]} 51. Qe2 {[%clk 0:01:35]}  Rc1+ {[%clk 0:01:47]}
52. Bf1 {[%clk 0:02:04]}  Nxe4 {[%clk 0:01:45]} 53. f6 {[%clk 0:02:01]}  Nd2 {[%clk 0:01:23]} 54. f7 {[%clk 0:01:02]}  Nxf1 {[%clk 0:00:37]}
55. Rg8+ {[%clk 0:00:36]}  Kc7 {[%clk 0:01:03]} 0-1